bitfinex/quotes_BTCUSD_20251221
["timestamp","ask_amount","ask_price","bid_price","bid_amount"]
[1766275201631,0.12364883,88463.0,88449.0,0.1148]
[1766275202996,0.0001,88487.0,88455.0,0.0633033]
[1766275203202,0.0001,88487.0,88475.0,0.1148]
[1766275203406,0.0001,88487.0,88473.0,0.12393]
[1766275203854,0.0001,88487.0,88474.0,0.1148]
[1766275204062,0.1249,88484.0,88468.0,0.1487586]
[1766275204268,0.13048,88484.0,88468.0,0.1487586]
[1766275204423,0.00055,88468.0,88457.0,0.1148]
[1766275204845,0.1249,88474.0,88464.0,0.03396083]
[1766275205252,0.00568,88477.0,88465.0,0.11358]
[1766275205453,0.00568,88477.0,88466.0,0.23338]
[1766275206077,0.00568,88483.0,88478.0,0.11358]
[1766275206276,0.00568,88482.0,88480.0,0.11358]
[1766275206439,0.00568,88482.0,88480.0,0.11303]
[1766275206641,0.00568,88482.0,88479.0,0.1198]
[1766275206866,0.01130224,88490.0,88479.0,0.1198]
[1766275207066,0.00568,88488.0,88479.0,0.1198]
[1766275207488,0.01140109,88487.0,88479.0,0.1198]
[1766275207669,0.0001,88487.0,88479.0,0.1198]
[1766275208069,0.01140109,88487.0,88479.0,0.1198]
[1766275208276,0.01130122,88486.0,88479.0,0.1198]
[1766275208476,0.01130135,88485.0,88475.0,0.11358]
[1766275208677,0.01140109,88487.0,88479.0,0.11358]
[1766275208911,0.0001,88487.0,88479.0,0.11358]
[1766275209234,0.0001,88487.0,88480.0,0.11358]
[1766275209761,0.01140109,88487.0,88480.0,0.11358]
[1766275210396,0.0001,88487.0,88480.0,0.11358]
[1766275210594,0.0001,88487.0,88482.0,0.11358]
[1766275211545,0.00568,88488.0,88482.0,0.11358]
[1766275211742,0.005231,88488.0,88482.0,5.671e-05]
[1766275211939,1e-06,88488.0,88485.0,0.11358]
[1766275212359,1e-06,88488.0,88486.0,0.11358]
[1766275212942,1e-06,88488.0,88487.0,0.11358]
[1766275214042,0.00568,88493.0,88487.0,0.11358]
[1766275214694,0.04204069,88499.0,88490.0,0.1198]
[1766275214849,0.00568,88501.0,88492.0,0.11358]
[1766275215050,0.00568,88501.0,88494.0,0.11358]
[1766275215411,0.0169793,88501.0,88494.0,0.11358]
[1766275215835,0.0169793,88501.0,88494.0,0.113031]
[1766275216580,0.00568,88501.0,88494.0,0.113031]
[1766275217029,0.01129892,88504.0,88495.0,0.1198]
[1766275217212,0.01129917,88502.0,88495.0,0.1198]
[1766275217846,0.01129917,88502.0,88497.0,0.11358]
[1766275218078,0.01129892,88504.0,88497.0,0.11358]
[1766275218307,0.01129905,88503.0,88497.0,0.11358]
[1766275218445,0.01129892,88504.0,88497.0,0.11358]
[1766275218646,0.01129879,88505.0,88497.0,0.11358]
[1766275219852,0.01129866,88506.0,88497.0,0.11358]
[1766275220027,0.01707892,88507.0,88499.0,0.11358]
[1766275220235,0.01707892,88507.0,88501.0,0.11358]
[1766275220441,0.01139854,88507.0,88501.0,0.11358]
[1766275222026,0.0001,88507.0,88501.0,0.11358]
[1766275223593,0.01139854,88507.0,88501.0,0.11358]
[1766275223746,0.0001,88507.0,88501.0,0.11358]
[1766275224647,0.01139854,88507.0,88501.0,0.11358]
[1766275224890,0.0001,88507.0,88501.0,0.11358]
[1766275227499,0.0112979,88512.0,88504.0,0.12392]
[1766275228033,0.01129803,88511.0,88504.0,0.12392]
[1766275228233,0.03618522,88512.0,88504.0,0.12392]
[1766275228488,0.01129803,88511.0,88504.0,0.12392]
[1766275228691,0.01129828,88509.0,88499.0,0.00568]
[1766275228988,0.01129828,88509.0,88499.0,0.1296]
[1766275229362,0.01129841,88508.0,88499.0,0.1296]
[1766275229560,0.01129854,88507.0,88500.0,0.12392]
[1766275229807,0.01129841,88508.0,88500.0,0.12392]
[1766275229953,0.01129828,88509.0,88500.0,0.12392]
[1766275230393,0.01129841,88508.0,88500.0,0.12392]
[1766275231122,0.01129854,88507.0,88500.0,0.12392]
[1766275231702,0.01129892,88504.0,88500.0,0.12392]
[1766275231925,0.01129892,88504.0,88495.0,0.00578]
[1766275232108,0.13977879,88505.0,88495.0,0.00578]
[1766275232457,0.12848,88505.0,88495.0,0.1297]
[1766275232653,0.13977879,88505.0,88496.0,0.12392]
[1766275232796,0.12848,88505.0,88496.0,0.12392]
[1766275232997,0.01697879,88505.0,88497.0,0.12392]
[1766275233233,0.01129892,88504.0,88497.0,0.12392]
[1766275234018,0.00568,88505.0,88497.0,0.12392]
[1766275234214,0.01697879,88505.0,88497.0,0.12392]
[1766275234423,0.00568,88505.0,88497.0,0.12392]
[1766275234830,0.01697879,88505.0,88497.0,0.12392]
[1766275236056,0.00568,88505.0,88497.0,0.12392]
[1766275236440,0.00568,88506.0,88500.0,0.12164]
[1766275236623,0.00568,88506.0,88503.0,0.11659]
[1766275236624,0.00457223,88506.0,88503.0,0.11659]
[1766275236823,0.00568,88505.0,88503.0,0.11659]
[1766275238028,0.00568,88505.0,88495.0,0.0001]
[1766275238293,0.12045,88502.0,88495.0,0.0001]
[1766275238509,0.13174917,88502.0,88495.0,0.0001]
[1766275238664,0.12045,88502.0,88495.0,0.0001]
[1766275240435,0.0112993,88501.0,88495.0,0.0001]
[1766275240646,0.01129956,88499.0,88495.0,0.0001]
[1766275241011,0.05649723,88500.0,88482.0,5.671e-05]
[1766275241012,0.01130096,88488.0,88482.0,5.671e-05]
[1766275241206,0.12045,88483.0,88472.0,0.12732]
[1766275241414,0.01130109,88487.0,88474.0,0.12164]
[1766275241747,0.05650994,88480.0,88473.0,0.00568]
[1766275241969,0.05962186,88481.0,88473.0,0.00568]
[1766275242167,0.04832,88481.0,88473.0,0.00568]
[1766275242382,0.04525962,88483.0,88473.0,0.00568]
[1766275242594,0.03395802,88483.0,88473.0,0.00568]
[1766275242809,0.01130173,88482.0,88473.0,0.00568]
[1766275243148,0.04525962,88483.0,88473.0,0.00568]
[1766275243375,0.01130173,88482.0,88473.0,0.00568]
[1766275243579,0.04525962,88483.0,88473.0,0.00568]
[1766275243782,0.01130186,88481.0,88473.0,0.00568]
[1766275244194,0.01130198,88480.0,88473.0,0.00568]
[1766275244365,0.01130186,88481.0,88473.0,0.00568]
[1766275244570,0.03963802,88483.0,88473.0,0.00568]
[1766275244978,0.01130186,88481.0,88473.0,0.00568]
[1766275246180,0.01130211,88479.0,88473.0,0.00568]
[1766275246384,0.01130198,88480.0,88473.0,0.00568]
[1766275247708,0.01130186,88481.0,88473.0,0.00568]
[1766275247909,0.01130173,88482.0,88473.0,0.00568]
[1766275248109,0.01130198,88481.0,88473.0,0.00568]
[1766275249383,0.01120198,88481.0,88473.0,0.00568]
[1766275250908,0.02250384,88481.0,88473.0,0.00568]
[1766275251064,0.01130198,88480.0,88473.0,0.00568]
[1766275252387,0.02250384,88481.0,88473.0,0.00568]
[1766275252572,0.01130198,88480.0,88473.0,0.00568]
[1766275252772,0.02250384,88481.0,88473.0,0.00568]
[1766275253418,0.01130198,88480.0,88473.0,0.00568]
[1766275253737,0.02250384,88481.0,88473.0,0.00568]
[1766275253874,0.13175173,88482.0,88473.0,0.00568]
[1766275254288,0.01130186,88481.0,88473.0,0.00568]
[1766275254523,0.13175173,88482.0,88473.0,0.00568]
[1766275254724,0.01130186,88481.0,88473.0,0.00568]
[1766275254987,0.01019409,88481.0,88473.0,0.00568]
[1766275255162,0.01130198,88480.0,88473.0,0.00568]
[1766275256236,0.01130198,88480.0,88473.0,0.00239]
[1766275256440,0.01019409,88481.0,88473.0,0.00239]
[1766275257501,0.01130198,88480.0,88473.0,0.00239]
[1766275258144,0.01019409,88481.0,88473.0,0.00239]
[1766275258718,0.01130186,88481.0,88473.0,0.00239]
[1766275258886,0.12045,88482.0,88473.0,0.00239]
[1766275259087,0.13175173,88482.0,88473.0,0.00239]
[1766275259529,0.12045,88482.0,88473.0,0.00239]
[1766275260578,0.12045,88481.0,88473.0,0.00239]
[1766275260711,0.13175211,88479.0,88473.0,0.00239]
[1766275261648,0.01130237,88477.0,88473.0,0.00239]
[1766275261849,0.12045,88479.0,88473.0,0.00239]
[1766275262480,0.13175211,88479.0,88473.0,0.00239]
[1766275262853,0.12045,88479.0,88473.0,0.00239]
[1766275263060,0.13175211,88479.0,88473.0,0.00239]
[1766275263460,0.11934197,88479.0,88473.0,0.00239]
[1766275263779,0.13064408,88479.0,88473.0,0.00239]
[1766275264303,0.11934197,88479.0,88473.0,0.00239]
[1766275266176,0.13064408,88479.0,88473.0,0.00239]
[1766275266527,0.11934197,88479.0,88473.0,0.00239]
[1766275266721,0.13064408,88479.0,88473.0,0.00239]
[1766275267103,0.11934197,88479.0,88473.0,0.00239]
[1766275270604,0.13064408,88479.0,88473.0,0.00239]
[1766275270941,0.11934197,88479.0,88473.0,0.00239]
[1766275273006,0.12953631,88479.0,88473.0,0.00239]
[1766275273200,0.01130224,88478.0,88473.0,0.00239]
[1766275273401,0.1182342,88479.0,88473.0,0.00239]
[1766275274989,0.01130224,88478.0,88471.0,0.0001]
[1766275275249,3.059e-05,88471.0,88469.0,0.0001]
[1766275275446,3.059e-05,88471.0,88469.0,0.00017312]
[1766275275631,0.13076,88476.0,88469.0,0.00017312]
[1766275276221,0.13076,88476.0,88469.0,0.00585312]
[1766275278521,0.1420625,88476.0,88469.0,0.00585312]
[1766275278725,0.13076,88476.0,88469.0,0.00585312]
[1766275279242,0.1420625,88476.0,88469.0,0.00585312]
[1766275279564,0.01130262,88475.0,88469.0,0.00585312]
[1766275279708,0.1420625,88476.0,88469.0,0.00585312]
[1766275281166,0.06781579,88475.0,88469.0,0.00585312]
[1766275281323,0.01130262,88475.0,88469.0,0.00585312]
[1766275281863,0.01019459,88475.0,88469.0,0.00585312]
[1766275282245,0.1420625,88476.0,88469.0,0.00585312]
[1766275283652,0.13076,88476.0,88469.0,0.00585312]
[1766275291189,0.12965223,88476.0,88469.0,0.00585312]
[1766275293297,0.14095473,88476.0,88469.0,0.00585312]
[1766275293850,0.12965223,88476.0,88469.0,0.00585312]
[1766275294213,0.14095473,88476.0,88469.0,0.00585312]
[1766275295308,0.01130262,88475.0,88469.0,0.00585312]
[1766275295697,0.00048,88469.0,88463.0,0.00568]
[1766275295920,0.12409,88469.0,88463.0,0.00575336]
[1766275296116,0.12361,88469.0,88463.0,0.00575336]
[1766275299499,0.12361,88469.0,88463.0,7.336e-05]
[1766275299954,0.12250197,88469.0,88463.0,7.336e-05]
[1766275304006,0.01130288,88473.0,88463.0,7.336e-05]
[1766275304564,0.01130275,88474.0,88463.0,7.336e-05]
[1766275305367,0.12361,88473.0,88463.0,7.336e-05]
[1766275305787,0.12361,88473.0,88463.0,0.11481336]
[1766275306445,0.12361,88473.0,88463.0,0.24469336]
[1766275306605,0.12361,88473.0,88463.0,0.14125752]
[1766275306802,0.123541,88473.0,88464.0,0.12604403]
[1766275307183,0.00568,88478.0,88465.0,0.11474]
[1766275307632,0.00568,88478.0,88465.0,0.1260439]
[1766275307968,0.00568,88478.0,88466.0,0.11474]
[1766275308150,0.00568,88478.0,88466.0,0.24462]
[1766275309487,0.00457223,88478.0,88466.0,0.24462]
[1766275310371,0.00457223,88478.0,88466.0,0.25592377]
[1766275310721,0.00457223,88478.0,88466.0,0.24462]
[1766275310864,0.00457223,88478.0,88466.0,0.25592377]
[1766275311473,0.00457223,88478.0,88466.0,0.24462]
[1766275311670,0.00457223,88478.0,88466.0,0.25592377]
[1766275312939,0.00457223,88478.0,88466.0,0.24462]
[1766275314237,0.01587447,88478.0,88466.0,0.24462]
[1766275314416,0.13948447,88478.0,88466.0,0.24462]
[1766275314912,0.03396133,88477.0,88466.0,0.24462]
[1766275315046,0.0452637,88477.0,88466.0,0.24462]
[1766275315445,0.01130237,88477.0,88466.0,0.24462]
[1766275315697,0.03396133,88476.0,88466.0,0.24462]
[1766275316284,0.04526383,88476.0,88466.0,0.24462]
[1766275316478,0.03396133,88476.0,88466.0,0.24462]
[1766275316663,0.01130237,88477.0,88466.0,0.24462]
[1766275316865,0.03396133,88476.0,88466.0,0.24462]
[1766275317893,0.03217847,88476.0,88466.0,0.24462]
[1766275318059,0.0633033,88473.0,88466.0,0.24462]
[1766275318262,0.01130275,88474.0,88463.0,7.336e-05]
[1766275318474,0.12361,88473.0,88463.0,7.336e-05]
[1766275319855,0.13491288,88473.0,88463.0,7.336e-05]
[1766275320344,0.01130301,88472.0,88463.0,7.336e-05]
[1766275320729,0.13491288,88473.0,88463.0,7.336e-05]
[1766275321172,0.01130301,88472.0,88463.0,7.336e-05]
[1766275321506,0.03396133,88475.0,88464.0,0.11474]
[1766275321715,0.12361,88476.0,88464.0,0.11474]
[1766275321962,0.01130262,88475.0,88464.0,0.11474]
[1766275322132,0.12361,88476.0,88464.0,0.11474]
[1766275325069,0.12361,88476.0,88464.0,0.25632403]
[1766275325789,0.12361,88476.0,88465.0,0.12467]
[1766275326607,0.1349125,88476.0,88465.0,0.12467]
[1766275327147,0.12361,88476.0,88465.0,0.12467]
[1766275327352,0.01130262,88475.0,88465.0,0.12467]
[1766275327574,0.12797,88475.0,88465.0,0.12467]
[1766275327931,0.13927262,88475.0,88465.0,0.12467]
[1766275328486,0.01130288,88473.0,88464.0,0.12035]
[1766275328625,0.13927275,88474.0,88464.0,0.12035]
[1766275329034,0.12797,88474.0,88464.0,0.12035]
[1766275331375,0.13927275,88474.0,88464.0,0.12035]
[1766275332714,0.12797,88474.0,88464.0,0.12035]
[1766275334909,0.12797,88474.0,88464.0,0.24502]
[1766275341406,0.12797,88474.0,88464.0,0.12035]
[1766275345115,0.13927275,88474.0,88464.0,0.12035]
[1766275345800,0.13780092,88474.0,88464.0,0.12035]
[1766275345949,0.12649817,88474.0,88464.0,0.12035]
[1766275346152,0.13780092,88474.0,88464.0,0.12035]
[1766275347292,0.01130288,88473.0,88464.0,0.12035]
[1766275347961,0.13780092,88474.0,88464.0,0.12035]
[1766275348282,0.12649817,88474.0,88464.0,0.12035]
[1766275352427,0.12594917,88474.0,88464.0,0.12035]
[1766275362530,0.12594917,88474.0,88464.0,0.13165403]
[1766275362937,0.12594917,88474.0,88464.0,0.12035]
[1766275363533,0.12594917,88474.0,88464.0,0.13165403]
[1766275363736,0.12594917,88474.0,88464.0,0.12035]
[1766275363943,0.12594917,88474.0,88464.0,0.13165403]
[1766275364357,0.12594917,88474.0,88464.0,0.12035]
[1766275364914,0.12594917,88474.0,88464.0,0.13165403]
[1766275365037,0.12594917,88474.0,88464.0,0.12035]
[1766275365237,0.12594917,88474.0,88465.0,0.0113039]
[1766275365596,0.12594917,88474.0,88464.0,0.13165403]
[1766275366496,0.12594917,88474.0,88464.0,0.12035]
[1766275370461,0.12594917,88474.0,88464.0,0.13165403]
[1766275373982,0.12594917,88474.0,88465.0,0.0113039]
[1766275374183,0.12594917,88474.0,88466.0,0.01130377]
[1766275374380,0.12594917,88474.0,88465.0,0.0113039]
[1766275375433,0.12594917,88474.0,88466.0,0.01130377]
[1766275378118,0.12594917,88474.0,88467.0,0.01130364]
[1766275380251,0.12284488,88474.0,88466.0,0.01130377]
[1766275380461,0.12284488,88474.0,88468.0,0.01130352]
[1766275381592,0.12061064,88474.0,88468.0,0.01130352]
[1766275381833,0.12061064,88474.0,88469.0,0.01130339]
[1766275382018,0.12061064,88474.0,88468.0,0.01130352]
[1766275382674,0.12061064,88474.0,88467.0,0.01130364]
[1766275383485,0.12061064,88474.0,88468.0,0.01130352]
[1766275384429,0.12061064,88474.0,88467.0,0.01130364]
[1766275385249,0.12061064,88474.0,88466.0,0.01130377]
[1766275385661,0.12061064,88474.0,88467.0,0.01130364]
[1766275386291,0.12061064,88474.0,88466.0,0.01130377]
[1766275387769,0.12061064,88474.0,88465.0,0.1264539]
[1766275388454,0.12061064,88474.0,88466.0,0.01130377]
[1766275389343,0.12061064,88474.0,88465.0,0.1264539]
[1766275389683,0.12061064,88474.0,88465.0,0.11515]
[1766275393277,0.04832,88486.0,88472.0,0.12137]
[1766275393449,0.12471,88483.0,88470.0,0.01130326]
[1766275393657,0.12471,88483.0,88471.0,0.13246313]
[1766275393794,0.12471,88483.0,88471.0,0.12116]
[1766275394005,0.12471,88483.0,88471.0,0.13246313]
[1766275394314,0.12471,88483.0,88471.0,0.12116]
[1766275394543,0.12471,88483.0,88471.0,0.13246313]
[1766275394742,0.12471,88483.0,88471.0,0.12116]
[1766275395142,0.00568,88482.0,88471.0,0.13246313]
[1766275395565,0.00568,88482.0,88471.0,0.12116]
[1766275396486,0.13039,88482.0,88470.0,0.12137]
[1766275396694,0.01130198,88480.0,88470.0,0.12137]
[1766275396890,0.01130135,88485.0,88475.0,0.12116]
[1766275397101,0.01130122,88486.0,88478.0,0.12137]
[1766275397330,0.01698109,88487.0,88480.0,0.12116]
[1766275397446,0.01698109,88487.0,88480.0,0.120611]
[1766275397649,0.01130122,88486.0,88480.0,0.120611]
[1766275397905,0.0113016,88483.0,88471.0,0.12137]
[1766275398107,0.01130147,88484.0,88471.0,0.12137]
[1766275398321,0.06780894,88484.0,88471.0,0.12137]
[1766275398518,0.0113016,88483.0,88471.0,0.12137]
[1766275398889,0.00568,88482.0,88471.0,0.12137]
[1766275405602,0.00568,88482.0,88472.0,0.11499]
[1766275407228,0.07349072,88482.0,88472.0,0.11499]
[1766275407525,0.00568,88482.0,88472.0,0.11499]
[1766275411953,0.00568,88482.0,88472.0,0.1149306]
[1766275413132,0.01698173,88482.0,88472.0,0.1149306]
[1766275413348,0.00568,88482.0,88472.0,0.1149306]
[1766275416192,0.00568,88482.0,88475.0,0.11328]
[1766275422798,0.00568,88482.0,88474.0,0.11834]
[1766275424189,0.13257,88482.0,88471.0,0.12458135]
[1766275424528,0.13257,88482.0,88471.0,0.13588448]
[1766275425091,0.13257,88482.0,88473.0,0.01130288]
[1766275427048,0.13257,88482.0,88472.0,0.01130301]
[1766275427223,0.13257,88482.0,88473.0,0.01130288]
[1766275427706,0.13257,88482.0,88471.0,0.12458135]
[1766275427904,0.13257,88482.0,88472.0,0.12458301]
[1766275428764,0.13257,88482.0,88474.0,0.01130275]
[1766275428993,0.13257,88482.0,88472.0,0.12458301]
[1766275429424,0.13257,88482.0,88473.0,0.01130288]
[1766275429633,0.13257,88482.0,88472.0,0.12458301]
[1766275429872,0.13257,88482.0,88473.0,0.01130288]
[1766275430083,0.005131,88482.0,88477.0,0.01130237]
[1766275430297,0.005131,88482.0,88476.0,0.0113025]
[1766275430509,0.005131,88482.0,88475.0,0.12458262]
[1766275430510,0.005131,88482.0,88475.0,0.11328]
[1766275430718,0.005131,88482.0,88475.0,0.12458262]
[1766275431251,0.00568,88483.0,88475.0,0.12458262]
[1766275431608,0.00568,88483.0,88475.0,0.11328]
[1766275431767,0.00568,88483.0,88476.0,0.0113025]
[1766275431979,0.00568,88483.0,88475.0,0.01130262]
[1766275433148,0.00568,88483.0,88476.0,0.0113025]
[1766275433775,0.12689,88488.0,88476.0,0.0113025]
[1766275433776,0.00568,88486.0,88479.0,0.01130211]
[1766275433976,0.12689,88488.0,88479.0,0.01130211]
[1766275434193,0.12689,88488.0,88478.0,0.01130224]
[1766275434194,0.00568,88486.0,88478.0,0.01130224]
[1766275434401,0.00568,88486.0,88476.0,0.04525837]
[1766275434523,0.13257,88486.0,88476.0,0.04525837]
[1766275435522,0.13257,88486.0,88477.0,0.01130237]
[1766275436204,0.13257,88486.0,88476.0,0.0113025]
[1766275436584,0.13257,88486.0,88478.0,0.03395587]
[1766275451854,0.01130135,88485.0,88478.0,0.03340687]
[1766275452058,0.14387122,88486.0,88478.0,0.03340687]
[1766275452220,0.11915,88485.0,88478.0,0.03340687]
[1766275453045,0.13045135,88485.0,88478.0,0.03340687]
[1766275453248,0.11915,88480.0,88473.0,0.00568]
[1766275453586,0.11915,88478.0,88470.0,0.00568]
[1766275454484,0.15310587,88478.0,88470.0,0.00568]
[1766275455589,0.11915,88478.0,88470.0,0.00568]
[1766275455784,0.03395679,88477.0,88470.0,0.00568]
[1766275457783,0.04525916,88477.0,88470.0,0.00568]
[1766275458109,0.0113025,88476.0,88470.0,0.00568]
[1766275458370,0.11915,88473.0,88463.0,7.336e-05]
[1766275458570,0.11915,88473.0,88461.0,0.03395679]
[1766275458571,0.11915,88461.0,88452.0,0.00029712]
[1766275458773,0.13613441,88461.0,88452.0,0.00029712]
[1766275459195,0.03396521,88460.0,88452.0,0.00029712]
[1766275461128,0.04526975,88460.0,88452.0,0.00029712]
[1766275461542,0.16441975,88460.0,88452.0,0.00029712]
[1766275461760,0.01130467,88459.0,88452.0,0.00029712]
[1766275462084,0.13045467,88459.0,88452.0,0.00029712]
[1766275462292,0.11915,88459.0,88452.0,0.00029712]
[1766275462536,0.13045467,88459.0,88452.0,0.00029712]
[1766275462749,0.11915,88459.0,88452.0,0.00029712]
[1766275463533,0.03396521,88458.0,88452.0,0.00029712]
[1766275467608,0.03341621,88458.0,88452.0,0.00029712]
[1766275469054,0.03341621,88458.0,88453.0,0.01130543]
[1766275469235,0.03341621,88458.0,88454.0,0.12301]
[1766275469369,0.03341621,88458.0,88454.0,0.08781206]
[1766275469979,0.03341621,88458.0,88454.0,0.09911737]
[1766275470230,0.03341621,88458.0,88454.0,0.08781206]
[1766275471369,0.03341621,88458.0,88452.0,0.00029712]
[1766275472542,0.03341621,88458.0,88452.0,0.12330712]
[1766275472752,0.03341621,88458.0,88452.0,0.13461268]
[1766275472954,0.03341621,88458.0,88452.0,0.12330712]
[1766275473124,0.03341621,88458.0,88452.0,0.13461268]
[1766275473330,0.03341621,88458.0,88453.0,0.01130543]
[1766275473741,0.03341621,88458.0,88452.0,0.13461268]
[1766275474260,0.03341621,88458.0,88453.0,0.01130543]
[1766275475086,0.03341621,88458.0,88455.0,0.01130518]
[1766275475263,0.03341621,88458.0,88454.0,0.01130531]
[1766275475987,0.03341621,88458.0,88455.0,0.01130518]
[1766275476346,0.03341621,88458.0,88454.0,0.01130531]
[1766275476563,0.03341621,88458.0,88455.0,0.01130518]
[1766275477711,0.000549,88455.0,88452.0,0.13461268]
[1766275477897,0.000549,88455.0,88452.0,0.12330712]
[1766275478079,0.03341621,88458.0,88452.0,0.13461268]
[1766275478283,0.03341621,88458.0,88452.0,0.12330712]
[1766275478683,0.03341621,88458.0,88452.0,0.1234149]
[1766275479388,0.03341621,88458.0,88452.0,0.13472046]
[1766275479636,0.03341621,88458.0,88452.0,0.1234149]
[1766275482081,0.03341621,88458.0,88452.0,0.13472046]
[1766275482282,0.03341621,88458.0,88452.0,0.1234149]
[1766275484181,0.03341621,88458.0,88452.0,0.13472046]
[1766275485218,0.03341621,88458.0,88452.0,0.1234149]
[1766275485881,0.03341621,88458.0,88452.0,0.13472046]
[1766275486332,0.03341621,88458.0,88452.0,0.1234149]
[1766275486484,0.03341621,88458.0,88452.0,0.0004049]
[1766275495027,0.03341621,88458.0,88454.0,0.01130531]
[1766275495442,0.00568,88462.0,88454.0,0.01130531]
[1766275495636,0.03396521,88461.0,88454.0,0.01130531]
[1766275495840,0.03396521,88461.0,88455.0,0.01130518]
[1766275496052,0.03396521,88461.0,88454.0,0.01130531]
[1766275496269,0.03396521,88461.0,88455.0,0.01130518]
[1766275496709,0.03396521,88461.0,88454.0,0.01130531]
[1766275497223,0.00568,88462.0,88454.0,0.01130531]
[1766275497426,0.00568,88462.0,88455.0,0.01130518]
[1766275497641,0.00568,88462.0,88454.0,0.01130531]
[1766275498420,0.12508,88463.0,88454.0,0.01130531]
[1766275498594,0.00568,88461.0,88455.0,0.01130518]
[1766275498969,0.00568,88461.0,88452.0,0.01130556]
[1766275499185,0.01130684,88442.0,88430.0,0.1227]
[1766275499389,0.09648,88439.0,88430.0,0.000359]
[1766275499815,0.10778722,88439.0,88430.0,0.000359]
[1766275500015,0.09648,88439.0,88430.0,0.000359]
[1766275500167,0.01130735,88438.0,88430.0,0.000359]
[1766275500388,0.01130748,88437.0,88430.0,0.000359]
[1766275500632,0.01130761,88436.0,88430.0,0.000359]
[1766275500833,0.01130748,88437.0,88430.0,0.000359]
[1766275501289,0.09648,88439.0,88430.0,0.000359]
[1766275501438,0.0509601,88444.0,88430.0,0.240859]
[1766275501651,0.1474901,88444.0,88430.0,0.240859]
[1766275501892,0.13618352,88444.0,88430.0,0.240859]
[1766275502047,0.1474901,88444.0,88431.0,0.1178]
[1766275502408,0.13618352,88444.0,88431.0,0.1178]
[1766275502942,0.13618352,88444.0,88431.0,0.2405]
[1766275503547,0.13618352,88444.0,88432.0,0.1178]
[1766275504920,0.13618352,88444.0,88441.0,0.00033869]
[1766275505048,0.13618352,88444.0,88432.0,0.1178]
[1766275505690,0.03363552,88444.0,88436.0,0.11684]
[1766275505883,0.00568,88451.0,88442.0,0.11684]
[1766275506120,0.03397133,88449.0,88442.0,0.11684]
[1766275508635,0.03397133,88449.0,88442.0,0.23808]
[1766275509612,0.23738603,88464.0,88443.0,0.13040806]
[1766275509809,0.00568,88456.0,88443.0,0.11684]
[1766275510028,0.04527432,88455.0,88444.0,0.23808]
[1766275510900,0.03396914,88455.0,88444.0,0.23808]
[1766275511102,0.03396914,88455.0,88445.0,0.11684]
[1766275511853,0.03396914,88455.0,88445.0,0.23808]
[1766275512063,0.00568,88454.0,88445.0,0.23808]
[1766275517104,0.01698531,88454.0,88445.0,0.23808]
[1766275517494,0.00568,88454.0,88445.0,0.23808]
[1766275517709,0.01698531,88454.0,88445.0,0.23808]
[1766275517916,0.00568,88454.0,88445.0,0.12124]
[1766275518121,0.01130569,88451.0,88441.0,0.11684]
[1766275518321,0.10821569,88451.0,88439.0,0.00568]
[1766275519067,0.09691,88451.0,88439.0,0.00568]
[1766275519276,0.01130582,88450.0,88439.0,0.00568]
[1766275519898,0.10821569,88451.0,88439.0,0.00568]
[1766275520131,0.09691,88451.0,88439.0,0.00568]
[1766275521743,0.09691,88451.0,88439.0,0.01698722]
[1766275522096,0.09691,88451.0,88439.0,0.00568]
[1766275522363,0.09691,88451.0,88439.0,0.12252]
[1766275522558,0.09691,88451.0,88439.0,0.25506722]
[1766275522765,0.09391,88451.0,88439.0,0.24376]
[1766275522957,0.09391,88451.0,88439.0,0.12692]
[1766275523121,0.09391,88451.0,88440.0,0.12351]
[1766275532632,0.09391,88451.0,88440.0,0.1348171]
[1766275532842,0.09391,88451.0,88440.0,0.12351]
[1766275534050,0.09391,88451.0,88440.0,0.1348171]
[1766275535087,0.09391,88451.0,88440.0,0.12351]
[1766275535502,0.09391,88451.0,88440.0,0.1348171]
[1766275535900,0.09391,88451.0,88440.0,0.12351]
[1766275536129,0.09391,88451.0,88439.0,0.13822722]
[1766275536883,0.09391,88451.0,88439.0,0.25895722]
[1766275537900,0.09391,88451.0,88439.0,0.24765]
[1766275538317,0.09391,88451.0,88439.0,0.25895722]
[1766275539295,0.09391,88451.0,88440.0,0.0113071]
[1766275539631,0.09391,88451.0,88439.0,0.24765]
[1766275540533,0.09391,88451.0,88439.0,0.25895722]
[1766275540726,0.09391,88451.0,88439.0,0.24765]
[1766275541645,0.09391,88451.0,88439.0,0.25895722]
[1766275541853,0.09391,88451.0,88439.0,0.24765]
[1766275543553,0.09391,88451.0,88439.0,0.25895722]
[1766275543921,0.09391,88451.0,88439.0,0.24765]
[1766275545228,0.09391,88451.0,88439.0,0.25895722]
[1766275545870,0.09391,88451.0,88439.0,0.24765]
[1766275547152,0.09391,88451.0,88439.0,0.25895722]
[1766275547367,0.09391,88451.0,88439.0,0.24765]
[1766275548564,0.09391,88451.0,88439.0,0.25895722]
[1766275548763,0.09391,88451.0,88439.0,0.24765]
[1766275549187,0.09391,88451.0,88439.0,0.25895722]
[1766275549948,0.09391,88451.0,88439.0,0.24765]
[1766275550745,0.09391,88451.0,88439.0,0.25895722]
[1766275551258,0.0501,88451.0,88439.0,0.13822722]
[1766275551490,0.09454,88450.0,88439.0,0.13822722]
[1766275552236,0.09454,88450.0,88439.0,0.12692]
[1766275553047,0.09454,88450.0,88439.0,0.13822722]
[1766275553455,0.09454,88450.0,88439.0,0.12692]
[1766275553654,0.09454,88450.0,88439.0,0.13822722]
[1766275553834,0.09454,88450.0,88439.0,0.12692]
[1766275556844,0.09454,88450.0,88439.0,0.13822722]
[1766275558222,0.09454,88450.0,88440.0,0.0113071]
[1766275558579,0.09454,88450.0,88439.0,0.13822722]
[1766275559392,0.09454,88450.0,88439.0,0.12692]
[1766275560822,0.09454,88450.0,88439.0,0.13822722]
[1766275561031,0.09454,88450.0,88439.0,0.12692]
[1766275563517,0.09454,88450.0,88439.0,0.13822722]
[1766275564904,0.09454,88450.0,88439.0,0.12692]
[1766275565110,0.09454,88450.0,88439.0,0.13822722]
[1766275566259,0.09454,88450.0,88439.0,0.12692]
[1766275567493,0.09454,88450.0,88439.0,0.13822722]
[1766275568138,0.09454,88450.0,88439.0,0.12692]
[1766275568274,0.09454,88450.0,88439.0,0.13822722]
[1766275568646,0.09454,88450.0,88439.0,0.12692]